[Event "Titled Tuesday Blitz January 18 2022"]
[White "Shkapenko, Pavel"]
[Black "Piorun, Kacper"]
[WhiteFideId "4151933"]
[BlackFideId "1130420"]
[WhiteElo "2386"]
[BlackElo "2571"]
[Result "0-1"]
[Round "09"]
[TimeControl "180+1"]
[Date "2022.01.18"]
[WhiteClock "0:00:05"]
[BlackClock "0:00:05"]

1. e4 {[%clk 0:02:55]}  d5 {[%clk 0:02:59]} 2. exd5 {[%clk 0:02:51]}  Qxd5 {[%clk 0:03:00]} 3. Nf3 {[%clk 0:02:49]}  Bg4 {[%clk 0:02:57]} 4. Be2 {[%clk 0:02:49]}  Nc6 {[%clk 0:02:57]} 5. d4 {[%clk 0:02:48]}  O-O-O {[%clk 0:02:55]} 6. c4 {[%clk 0:02:46]}  Qa5+ {[%clk 0:02:48]} 7. Bd2 {[%clk 0:02:46]}  Qh5 {[%clk 0:02:45]} 8. Be3 {[%clk 0:02:45]}  e6 {[%clk 0:02:43]} 9. a3 {[%clk 0:02:14]}  Nf6 {[%clk 0:02:24]} 10. Nbd2 {[%clk 0:02:11]}  e5 {[%clk 0:02:08]} 11. d5 {[%clk 0:02:10]}  Nd4 {[%clk 0:01:57]} 12. Nxd4 {[%clk 0:02:04]}  exd4 {[%clk 0:01:55]} 13. Bxd4 {[%clk 0:02:04]}  Re8 {[%clk 0:01:50]} 14. Be3 {[%clk 0:02:05]}  Bc5 {[%clk 0:01:44]} 15. Nf1 {[%clk 0:01:36]}  Qh4 {[%clk 0:01:11]} 16. Qd2 {[%clk 0:01:27]}  Ne4 {[%clk 0:00:57]} 17. g3 {[%clk 0:00:57]}  Qh3 {[%clk 0:00:46]} 18. Bxg4+ {[%clk 0:00:49]}  Qxg4 {[%clk 0:00:47]} 19. Qe2 {[%clk 0:00:49]}  Qh3 {[%clk 0:00:35]} 20. O-O-O {[%clk 0:00:33]}  Qg2 {[%clk 0:00:29]} 21. Nd2 {[%clk 0:00:33]}  Bxe3 {[%clk 0:00:14]} 22. Qxe3 {[%clk 0:00:31]}  Nxf2 {[%clk 0:00:14]} 23. Qf3 {[%clk 0:00:28]}  Qxf3 {[%clk 0:00:13]} 24. Nxf3 {[%clk 0:00:29]}  Nxh1 {[%clk 0:00:14]} 25. Rxh1 {[%clk 0:00:29]}  Re4 {[%clk 0:00:14]} 26. b3 {[%clk 0:00:28]}  Re3 {[%clk 0:00:14]} 27. Nd4 {[%clk 0:00:26]}  Rd3 {[%clk 0:00:14]} 28. Rd1 {[%clk 0:00:26]}  Rxd1+ {[%clk 0:00:14]} 29. Kxd1 {[%clk 0:00:26]}  Re8 {[%clk 0:00:15]} 30. Kd2 {[%clk 0:00:27]}  g6 {[%clk 0:00:14]} 31. Nf3 {[%clk 0:00:22]}  h6 {[%clk 0:00:11]} 32. Kd3 {[%clk 0:00:22]}  Kd7 {[%clk 0:00:10]} 33. c5 {[%clk 0:00:21]}  g5 {[%clk 0:00:06]} 34. b4 {[%clk 0:00:21]}  b6 {[%clk 0:00:04]} 35. Kd4 {[%clk 0:00:18]}  Re2 {[%clk 0:00:05]} 36. Ne5+ {[%clk 0:00:18]}  Ke8 {[%clk 0:00:05]} 37. Nc6 {[%clk 0:00:18]}  Rxh2 {[%clk 0:00:04]} 38. Nxa7 {[%clk 0:00:18]}  h5 {[%clk 0:00:04]} 39. Nb5 {[%clk 0:00:18]}  bxc5+ {[%clk 0:00:04]} 40. bxc5 {[%clk 0:00:16]}  h4 {[%clk 0:00:05]} 41. gxh4 {[%clk 0:00:12]}  gxh4 {[%clk 0:00:06]} 42. Nxc7+ {[%clk 0:00:12]}  Kd7 {[%clk 0:00:06]} 43. Nb5 {[%clk 0:00:11]}  h3 {[%clk 0:00:07]} 44. c6+ {[%clk 0:00:12]}  Kd8 {[%clk 0:00:07]} 45. d6 {[%clk 0:00:11]}  Rd2+ {[%clk 0:00:07]} 46. Kc5 {[%clk 0:00:11]}  h2 {[%clk 0:00:08]} 47. d7 {[%clk 0:00:05]}  h1=Q {[%clk 0:00:07]} 48. Nd6 {[%clk 0:00:05]}  Qd5+ {[%clk 0:00:05]} 0-1


[Site "https://www.chess.com"]

[Event "Titled Tuesday Blitz January 18 2022"]
[White "Svane, Frederik"]
[Black "Jary, Sergey"]
[WhiteFideId "12923044"]
[BlackFideId "14110350"]
[WhiteElo "2459"]
[BlackElo "2260"]
[Result "0-1"]
[Round "09"]
[TimeControl "180+1"]
[Date "2022.01.18"]
[WhiteClock "0:00:13"]
[BlackClock "0:00:10"]

1. e4 {[%clk 0:03:00]}  c5 {[%clk 0:03:00]} 2. Nf3 {[%clk 0:03:01]}  Nc6 {[%clk 0:03:00]} 3. Bb5 {[%clk 0:03:01]}  Qc7 {[%clk 0:03:00]} 4. O-O {[%clk 0:02:54]}  a6 {[%clk 0:02:59]} 5. Bxc6 {[%clk 0:02:53]}  Qxc6 {[%clk 0:03:00]} 6. d4 {[%clk 0:02:52]}  cxd4 {[%clk 0:03:00]} 7. Nxd4 {[%clk 0:02:53]}  Qc7 {[%clk 0:03:00]} 8. Nc3 {[%clk 0:02:45]}  e6 {[%clk 0:02:49]} 9. Re1 {[%clk 0:02:45]}  Bd6 {[%clk 0:02:44]} 10. Qh5 {[%clk 0:02:45]}  b5 {[%clk 0:02:36]} 11. a4 {[%clk 0:02:20]}  b4 {[%clk 0:02:36]} 12. Nd5 {[%clk 0:02:20]}  exd5 {[%clk 0:02:30]} 13. exd5+ {[%clk 0:02:17]}  Kf8 {[%clk 0:02:30]} 14. Bg5 {[%clk 0:01:42]}  h6 {[%clk 0:02:21]} 15. Bh4 {[%clk 0:00:51]}  Nf6 {[%clk 0:02:11]} 16. Qf5 {[%clk 0:00:40]}  Kg8 {[%clk 0:02:00]} 17. Bxf6 {[%clk 0:00:38]}  Bf8 {[%clk 0:02:00]} 18. Re8 {[%clk 0:00:31]}  d6 {[%clk 0:01:56]} 19. Qf4 {[%clk 0:00:25]}  Bb7 {[%clk 0:01:52]} 20. Rae1 {[%clk 0:00:17]}  Qd7 {[%clk 0:01:48]} 21. Rxa8 {[%clk 0:00:16]}  Bxa8 {[%clk 0:01:49]} 22. Nf5 {[%clk 0:00:09]}  gxf6 {[%clk 0:01:49]} 23. Re3 {[%clk 0:00:02]}  Rh7 {[%clk 0:01:42]} 24. Qg4+ {[%clk 0:00:02]}  Kh8 {[%clk 0:01:38]} 25. Rg3 {[%clk 0:00:02]}  Bg7 {[%clk 0:01:28]} 26. Qf4 {[%clk 0:00:02]}  Bf8 {[%clk 0:01:23]} 27. Nd4 {[%clk 0:00:02]}  Rg7 {[%clk 0:01:04]} 28. Qxh6+ {[%clk 0:00:02]}  Kg8 {[%clk 0:01:04]} 29. Rxg7+ {[%clk 0:00:01]}  Bxg7 {[%clk 0:01:02]} 30. Qh5 {[%clk 0:00:02]}  Qe7 {[%clk 0:00:54]} 31. h3 {[%clk 0:00:02]}  Qe1+ {[%clk 0:00:49]} 32. Kh2 {[%clk 0:00:02]}  Qe4 {[%clk 0:00:49]} 33. Nf5 {[%clk 0:00:01]}  Bxd5 {[%clk 0:00:44]} 34. Qg4 {[%clk 0:00:01]}  Qxg4 {[%clk 0:00:40]} 35. hxg4 {[%clk 0:00:02]}  Be4 {[%clk 0:00:41]} 36. Nxd6 {[%clk 0:00:02]}  Bxc2 {[%clk 0:00:41]} 37. a5 {[%clk 0:00:02]}  f5 {[%clk 0:00:39]} 38. gxf5 {[%clk 0:00:02]}  Bxb2 {[%clk 0:00:38]} 39. f4 {[%clk 0:00:03]}  Bf6 {[%clk 0:00:37]} 40. Ne8 {[%clk 0:00:02]}  Bd4 {[%clk 0:00:34]} 41. Nc7 {[%clk 0:00:02]}  b3 {[%clk 0:00:34]} 42. Nxa6 {[%clk 0:00:03]}  b2 {[%clk 0:00:34]} 43. Nb4 {[%clk 0:00:04]}  Bxf5 {[%clk 0:00:31]} 44. Nd5 {[%clk 0:00:05]}  b1=Q {[%clk 0:00:30]} 45. a6 {[%clk 0:00:04]}  Qe4 {[%clk 0:00:28]} 46. a7 {[%clk 0:00:02]}  Qxd5 {[%clk 0:00:28]} 47. g4 {[%clk 0:00:02]}  Bxg4 {[%clk 0:00:27]} 48. Kg3 {[%clk 0:00:02]}  Bf5 {[%clk 0:00:27]} 49. Kh4 {[%clk 0:00:02]}  Qf3 {[%clk 0:00:26]} 50. a8=Q+ {[%clk 0:00:02]}  Qxa8 {[%clk 0:00:25]} 51. Kg5 {[%clk 0:00:03]}  Kg7 {[%clk 0:00:25]} 52. Kh4 {[%clk 0:00:04]}  Bf6+ {[%clk 0:00:24]} 53. Kg3 {[%clk 0:00:04]}  Qa3+ {[%clk 0:00:25]} 54. Kf2 {[%clk 0:00:05]}  Bd4+ {[%clk 0:00:24]} 55. Kg2 {[%clk 0:00:05]}  Be4+ {[%clk 0:00:23]} 56. Kh2 {[%clk 0:00:06]}  Qb2+ {[%clk 0:00:22]} 57. Kg3 {[%clk 0:00:06]}  Qc3+ {[%clk 0:00:22]} 58. Kh4 {[%clk 0:00:07]}  Qd2 {[%clk 0:00:21]} 59. f5 {[%clk 0:00:07]}  Qh2+ {[%clk 0:00:21]} 60. Kg4 {[%clk 0:00:07]}  Bd3 {[%clk 0:00:18]} 61. f6+ {[%clk 0:00:08]}  Kf8 {[%clk 0:00:16]} 62. Kf3 {[%clk 0:00:09]}  Bg6 {[%clk 0:00:13]} 63. Kg4 {[%clk 0:00:09]}  Qe2+ {[%clk 0:00:12]} 64. Kg5 {[%clk 0:00:10]}  Qe5+ {[%clk 0:00:11]} 65. Kh4 {[%clk 0:00:11]}  Qh5+ {[%clk 0:00:11]} 66. Kg3 {[%clk 0:00:11]}  Be5+ {[%clk 0:00:11]} 67. Kf2 {[%clk 0:00:12]}  Qh3 {[%clk 0:00:11]} 68. Ke2 {[%clk 0:00:12]}  Bd4 {[%clk 0:00:10]} 69. Kd2 {[%clk 0:00:13]}  Qd3+ {[%clk 0:00:10]} 70. Ke1 {[%clk 0:00:13]}  Qc2 {[%clk 0:00:10]} 71. Kf1 {[%clk 0:00:13]}  Qf2# {[%clk 0:00:10]} 0-1


[Site "https://www.chess.com"]

[Event "Titled Tuesday Blitz January 18 2022"]
[White "Tanenbaum, Zachary"]
[Black "Carbone, Diego"]
[WhiteFideId "2060850"]
[BlackFideId "3002179"]
[WhiteElo "2168"]
[BlackElo "2199"]
[Result "0-1"]
[Round "09"]
[TimeControl "180+1"]
[Date "2022.01.18"]
[WhiteClock "0:00:09"]
[BlackClock "0:00:06"]

1. e4 {[%clk 0:03:00]}  e5 {[%clk 0:02:58]} 2. Nf3 {[%clk 0:03:00]}  Nc6 {[%clk 0:02:54]} 3. Bc4 {[%clk 0:03:00]}  Bc5 {[%clk 0:02:54]} 4. c3 {[%clk 0:03:00]}  Nf6 {[%clk 0:02:54]} 5. d3 {[%clk 0:03:01]}  d6 {[%clk 0:02:54]} 6. Nbd2 {[%clk 0:03:01]}  a5 {[%clk 0:02:54]} 7. a4 {[%clk 0:03:01]}  h6 {[%clk 0:02:53]} 8. Nf1 {[%clk 0:03:00]}  Be6 {[%clk 0:02:52]} 9. Bxe6 {[%clk 0:03:00]}  fxe6 {[%clk 0:02:53]} 10. Ng3 {[%clk 0:03:00]}  O-O {[%clk 0:02:49]} 11. O-O {[%clk 0:03:00]}  Bb6 {[%clk 0:02:27]} 12. Be3 {[%clk 0:02:59]}  Bxe3 {[%clk 0:02:25]} 13. fxe3 {[%clk 0:03:00]}  Ne7 {[%clk 0:02:22]} 14. Nd2 {[%clk 0:02:54]}  Qd7 {[%clk 0:02:21]} 15. Qe2 {[%clk 0:02:52]}  b6 {[%clk 0:02:20]} 16. Nc4 {[%clk 0:02:46]}  Rf7 {[%clk 0:02:20]} 17. b3 {[%clk 0:02:43]}  Raf8 {[%clk 0:02:20]} 18. h3 {[%clk 0:02:41]}  Nh7 {[%clk 0:02:05]} 19. Rxf7 {[%clk 0:02:40]}  Rxf7 {[%clk 0:02:06]} 20. Rf1 {[%clk 0:02:40]}  Rxf1+ {[%clk 0:02:06]} 21. Qxf1 {[%clk 0:02:40]}  Nf6 {[%clk 0:02:06]} 22. Qd1 {[%clk 0:02:33]}  Qc6 {[%clk 0:02:03]} 23. Nh5 {[%clk 0:02:19]}  Kf7 {[%clk 0:01:21]} 24. Nxf6 {[%clk 0:01:57]}  gxf6 {[%clk 0:01:22]} 25. Qh5+ {[%clk 0:01:55]}  Kg7 {[%clk 0:01:22]} 26. Qg4+ {[%clk 0:01:33]}  Kf7 {[%clk 0:01:20]} 27. d4 {[%clk 0:01:32]}  b5 {[%clk 0:01:08]} 28. axb5 {[%clk 0:01:27]}  Qxb5 {[%clk 0:01:09]} 29. Kh2 {[%clk 0:00:56]}  a4 {[%clk 0:01:03]} 30. Qh5+ {[%clk 0:00:49]}  Kg7 {[%clk 0:01:02]} 31. Qg4+ {[%clk 0:00:45]}  Kf7 {[%clk 0:01:01]} 32. Qe2 {[%clk 0:00:37]}  Qxb3 {[%clk 0:00:52]} 33. Na5 {[%clk 0:00:30]}  Qxc3 {[%clk 0:00:47]} 34. Qh5+ {[%clk 0:00:29]}  Ng6 {[%clk 0:00:45]} 35. Nb7 {[%clk 0:00:16]}  Qxe3 {[%clk 0:00:26]} 36. Nd8+ {[%clk 0:00:16]}  Ke7 {[%clk 0:00:23]} 37. Qxg6 {[%clk 0:00:14]}  Qf4+ {[%clk 0:00:18]} 38. Kh1 {[%clk 0:00:15]}  Qf1+ {[%clk 0:00:16]} 39. Kh2 {[%clk 0:00:14]}  Qf4+ {[%clk 0:00:17]} 40. Kh1 {[%clk 0:00:15]}  Kxd8 {[%clk 0:00:17]} 41. Qg8+ {[%clk 0:00:14]}  Kd7 {[%clk 0:00:17]} 42. Qf7+ {[%clk 0:00:15]}  Kc6 {[%clk 0:00:14]} 43. Qe8+ {[%clk 0:00:10]}  Kb6 {[%clk 0:00:12]} 44. Qb8+ {[%clk 0:00:05]}  Ka6 {[%clk 0:00:08]} 45. Qa8+ {[%clk 0:00:04]}  Kb5 {[%clk 0:00:08]} 46. Qb7+ {[%clk 0:00:05]}  Kc4 {[%clk 0:00:08]} 47. Qxc7+ {[%clk 0:00:05]}  Kxd4 {[%clk 0:00:08]} 48. Qa7+ {[%clk 0:00:04]}  Kxe4 {[%clk 0:00:06]} 49. Qxa4+ {[%clk 0:00:04]}  Kf5 {[%clk 0:00:06]} 50. Qc2+ {[%clk 0:00:04]}  Qe4 {[%clk 0:00:03]} 51. Qf2+ {[%clk 0:00:02]}  Qf4 {[%clk 0:00:03]} 52. Qc2+ {[%clk 0:00:02]}  e4 {[%clk 0:00:03]} 53. Qc8 {[%clk 0:00:02]}  Qf1+ {[%clk 0:00:02]} 54. Kh2 {[%clk 0:00:02]}  Qf4+ {[%clk 0:00:03]} 55. Kh1 {[%clk 0:00:02]}  d5 {[%clk 0:00:02]} 56. Qe8 {[%clk 0:00:02]}  Ke5 {[%clk 0:00:02]} 57. Qb8+ {[%clk 0:00:02]}  Kf5 {[%clk 0:00:02]} 58. g4+ {[%clk 0:00:02]}  Kg5 {[%clk 0:00:02]} 59. Qb2 {[%clk 0:00:02]}  Qf3+ {[%clk 0:00:02]} 60. Kh2 {[%clk 0:00:03]}  Qf4+ {[%clk 0:00:01]} 61. Kg2 {[%clk 0:00:03]}  Kh4 {[%clk 0:00:01]} 62. Qc2 {[%clk 0:00:03]}  Qf3+ {[%clk 0:00:01]} 63. Kh2 {[%clk 0:00:04]}  e3 {[%clk 0:00:02]} 64. Qd3 {[%clk 0:00:03]}  Qf2+ {[%clk 0:00:02]} 65. Kh1 {[%clk 0:00:03]}  Qf3+ {[%clk 0:00:03]} 66. Kg1 {[%clk 0:00:03]}  Qg3+ {[%clk 0:00:02]} 67. Kh1 {[%clk 0:00:03]}  Qxh3+ {[%clk 0:00:03]} 68. Kg1 {[%clk 0:00:03]}  Qxg4+ {[%clk 0:00:03]} 69. Kh2 {[%clk 0:00:03]}  Qg3+ {[%clk 0:00:03]} 70. Kh1 {[%clk 0:00:04]}  Qf3+ {[%clk 0:00:02]} 71. Kh2 {[%clk 0:00:04]}  Qf4+ {[%clk 0:00:03]} 72. Kh1 {[%clk 0:00:05]}  Qe4+ {[%clk 0:00:03]} 73. Qxe4+ {[%clk 0:00:04]}  dxe4 {[%clk 0:00:04]} 74. Kg1 {[%clk 0:00:05]}  Kg4 {[%clk 0:00:04]} 75. Kf1 {[%clk 0:00:05]}  Kf3 {[%clk 0:00:04]} 76. Ke1 {[%clk 0:00:05]}  e2 {[%clk 0:00:05]} 77. Kd2 {[%clk 0:00:05]}  Kf2 {[%clk 0:00:06]} 78. Kc3 {[%clk 0:00:06]}  e1=Q+ {[%clk 0:00:06]} 79. Kd4 {[%clk 0:00:07]}  e3 {[%clk 0:00:06]} 80. Ke4 {[%clk 0:00:07]}  e2 {[%clk 0:00:07]} 81. Kf4 {[%clk 0:00:08]}  h5 {[%clk 0:00:07]} 82. Ke4 {[%clk 0:00:08]}  Qb1+ {[%clk 0:00:06]} 83. Kf4 {[%clk 0:00:09]}  Qb4# {[%clk 0:00:06]} 0-1


[Site "https://www.chess.com"]

[Event "Titled Tuesday Blitz January 18 2022"]
[White "Vlassov, Nikolai"]
[Black "Yeletsky, Ivan"]
[WhiteFideId "4103360"]
[BlackFideId "24180327"]
[WhiteElo "2407"]
[BlackElo "2348"]
[Result "0-1"]
[Round "09"]
[TimeControl "180+1"]
[Date "2022.01.18"]
[WhiteClock "0:00:26"]
[BlackClock "0:00:32"]

1. e4 {[%clk 0:03:00]}  c6 {[%clk 0:02:58]} 2. d4 {[%clk 0:02:59]}  d5 {[%clk 0:02:58]} 3. e5 {[%clk 0:02:59]}  c5 {[%clk 0:02:58]} 4. dxc5 {[%clk 0:02:58]}  e6 {[%clk 0:02:58]} 5. Nf3 {[%clk 0:02:53]}  Bxc5 {[%clk 0:02:57]} 6. Bd3 {[%clk 0:02:53]}  Ne7 {[%clk 0:02:54]} 7. O-O {[%clk 0:02:53]}  Ng6 {[%clk 0:02:54]} 8. Qe2 {[%clk 0:02:46]}  Nc6 {[%clk 0:02:53]} 9. c3 {[%clk 0:02:39]}  O-O {[%clk 0:02:43]} 10. b4 {[%clk 0:02:34]}  Bb6 {[%clk 0:02:43]} 11. b5 {[%clk 0:02:34]}  Na5 {[%clk 0:02:29]} 12. a4 {[%clk 0:02:30]}  Nb3 {[%clk 0:02:28]} 13. Ra2 {[%clk 0:02:23]}  Nxc1 {[%clk 0:02:29]} 14. Rxc1 {[%clk 0:02:23]}  Nf4 {[%clk 0:02:17]} 15. Qd2 {[%clk 0:02:23]}  g5 {[%clk 0:01:45]} 16. h4 {[%clk 0:01:50]}  f6 {[%clk 0:01:44]} 17. exf6 {[%clk 0:01:35]}  Qxf6 {[%clk 0:01:39]} 18. hxg5 {[%clk 0:01:35]}  Qg7 {[%clk 0:01:36]} 19. c4 {[%clk 0:01:21]}  e5 {[%clk 0:01:23]} 20. cxd5 {[%clk 0:01:10]}  Bh3 {[%clk 0:00:43]} 21. Bf1 {[%clk 0:00:46]}  e4 {[%clk 0:00:42]} 22. a5 {[%clk 0:00:30]}  exf3 {[%clk 0:00:39]} 23. axb6 {[%clk 0:00:29]}  Bxg2 {[%clk 0:00:32]} 24. Bxg2 {[%clk 0:00:26]}  Qxg5 {[%clk 0:00:32]} 0-1


[Site "https://www.chess.com"]

[Event "Titled Tuesday Blitz January 18 2022"]
[White "Zhuravlev, Alexey"]
[Black "Ezat, Mohamed"]
[WhiteFideId "4164199"]
[BlackFideId "10600906"]
[WhiteElo "2544"]
[BlackElo "2386"]
[Result "0-1"]
[Round "09"]
[TimeControl "180+1"]
[Date "2022.01.18"]
[WhiteClock "0:00:01"]
[BlackClock "0:00:17"]

1. e4 {[%clk 0:03:00]}  c6 {[%clk 0:02:57]} 2. d4 {[%clk 0:03:00]}  d5 {[%clk 0:02:44]} 3. e5 {[%clk 0:03:00]}  c5 {[%clk 0:02:44]} 4. dxc5 {[%clk 0:02:59]}  Nc6 {[%clk 0:02:44]} 5. Bb5 {[%clk 0:02:58]}  e6 {[%clk 0:02:42]} 6. Be3 {[%clk 0:02:45]}  Bd7 {[%clk 0:02:39]} 7. Bxc6 {[%clk 0:02:34]}  Bxc6 {[%clk 0:02:38]} 8. Nf3 {[%clk 0:02:34]}  Ne7 {[%clk 0:02:35]} 9. c3 {[%clk 0:02:23]}  Nf5 {[%clk 0:02:33]} 10. Bd4 {[%clk 0:02:23]}  Nxd4 {[%clk 0:02:33]} 11. Qxd4 {[%clk 0:02:14]}  Qc7 {[%clk 0:02:17]} 12. b4 {[%clk 0:02:10]}  a5 {[%clk 0:02:17]} 13. O-O {[%clk 0:02:03]}  Be7 {[%clk 0:02:13]} 14. Re1 {[%clk 0:01:44]}  O-O {[%clk 0:02:12]} 15. h4 {[%clk 0:01:41]}  Rfb8 {[%clk 0:02:08]} 16. Nbd2 {[%clk 0:01:38]}  b6 {[%clk 0:02:06]} 17. cxb6 {[%clk 0:01:36]}  Rxb6 {[%clk 0:02:06]} 18. a3 {[%clk 0:01:34]}  Rba6 {[%clk 0:02:05]} 19. Nb3 {[%clk 0:01:31]}  axb4 {[%clk 0:01:52]} 20. axb4 {[%clk 0:01:32]}  Bb5 {[%clk 0:01:52]} 21. Rxa6 {[%clk 0:01:28]}  Rxa6 {[%clk 0:01:49]} 22. Ra1 {[%clk 0:01:28]}  h6 {[%clk 0:01:37]} 23. Ra5 {[%clk 0:01:16]}  Bc4 {[%clk 0:01:35]} 24. Rxa6 {[%clk 0:01:10]}  Bxa6 {[%clk 0:01:34]} 25. Nc5 {[%clk 0:01:08]}  Bb5 {[%clk 0:01:29]} 26. g3 {[%clk 0:01:01]}  Qa7 {[%clk 0:01:20]} 27. Nd2 {[%clk 0:00:36]}  Qa1+ {[%clk 0:01:15]} 28. Kh2 {[%clk 0:00:36]}  g5 {[%clk 0:01:09]} 29. hxg5 {[%clk 0:00:33]}  hxg5 {[%clk 0:01:06]} 30. Nf3 {[%clk 0:00:32]}  Qf1 {[%clk 0:01:01]} 31. Nb7 {[%clk 0:00:24]}  Be2 {[%clk 0:00:53]} 32. Ng1 {[%clk 0:00:22]}  Bd3 {[%clk 0:00:44]} 33. Nd6 {[%clk 0:00:20]}  f6 {[%clk 0:00:39]} 34. Nc8 {[%clk 0:00:15]}  Bd8 {[%clk 0:00:25]} 35. exf6 {[%clk 0:00:13]}  Kf7 {[%clk 0:00:22]} 36. Nd6+ {[%clk 0:00:14]}  Kg6 {[%clk 0:00:22]} 37. f7 {[%clk 0:00:13]}  Be7 {[%clk 0:00:23]} 38. Ne8 {[%clk 0:00:05]}  Kxf7 {[%clk 0:00:20]} 39. Nc7 {[%clk 0:00:05]}  Bd6 {[%clk 0:00:20]} 40. Nxe6 {[%clk 0:00:02]}  Kxe6 {[%clk 0:00:19]} 41. Nf3 {[%clk 0:00:02]}  Be4 {[%clk 0:00:18]} 42. Nxg5+ {[%clk 0:00:02]}  Kd7 {[%clk 0:00:17]} 43. Nxe4 {[%clk 0:00:03]}  dxe4 {[%clk 0:00:18]} 44. c4 {[%clk 0:00:03]}  Qe2 {[%clk 0:00:18]} 45. c5 {[%clk 0:00:03]}  Qh5+ {[%clk 0:00:18]} 46. Kg1 {[%clk 0:00:03]}  Qf3 {[%clk 0:00:17]} 47. Qxd6+ {[%clk 0:00:02]}  Kc8 {[%clk 0:00:18]} 48. Qf4 {[%clk 0:00:01]}  Qd3 {[%clk 0:00:17]} 0-1


[Site "https://www.chess.com"]

[Event "Titled Tuesday Blitz January 18 2022"]
[White "Agasarov, Benik"]
[Black "Gabdushev, Ruslan"]
[WhiteFideId "13314823"]
[BlackFideId "4137833"]
[WhiteElo "2568"]
[BlackElo "2312"]
[Result "1-0"]
[Round "10"]
[TimeControl "180+1"]
[Date "2022.01.18"]
[WhiteClock "0:00:48"]
[BlackClock "0:00:16"]

1. e4 {[%clk 0:03:00]}  Nc6 {[%clk 0:02:59]} 2. Nf3 {[%clk 0:02:59]}  d6 {[%clk 0:02:59]} 3. d4 {[%clk 0:02:57]}  Bg4 {[%clk 0:02:58]} 4. d5 {[%clk 0:02:48]}  Nb8 {[%clk 0:02:58]} 5. c4 {[%clk 0:02:35]}  Nf6 {[%clk 0:02:55]} 6. Nc3 {[%clk 0:02:34]}  c6 {[%clk 0:02:55]} 7. Be2 {[%clk 0:02:33]}  Bxf3 {[%clk 0:02:54]} 8. Bxf3 {[%clk 0:02:33]}  Nbd7 {[%clk 0:02:54]} 9. O-O {[%clk 0:02:33]}  g6 {[%clk 0:02:54]} 10. Be2 {[%clk 0:02:33]}  Bg7 {[%clk 0:02:53]} 11. Be3 {[%clk 0:02:33]}  O-O {[%clk 0:02:53]} 12. Rc1 {[%clk 0:02:34]}  a5 {[%clk 0:02:51]} 13. h3 {[%clk 0:02:33]}  a4 {[%clk 0:02:48]} 14. a3 {[%clk 0:02:30]}  Qa5 {[%clk 0:02:47]} 15. Qd2 {[%clk 0:02:21]}  Nc5 {[%clk 0:02:44]} 16. Bxc5 {[%clk 0:02:21]}  Qxc5 {[%clk 0:02:44]} 17. Kh1 {[%clk 0:02:20]}  Nd7 {[%clk 0:02:34]} 18. f4 {[%clk 0:02:19]}  Ra6 {[%clk 0:02:19]} 19. Qe1 {[%clk 0:01:46]}  Qb6 {[%clk 0:01:58]} 20. c5 {[%clk 0:01:42]}  Nxc5 {[%clk 0:01:57]} 21. Bxa6 {[%clk 0:01:42]}  Qxa6 {[%clk 0:01:57]} 22. dxc6 {[%clk 0:01:39]}  bxc6 {[%clk 0:01:52]} 23. e5 {[%clk 0:01:36]}  Qb6 {[%clk 0:01:48]} 24. Qf2 {[%clk 0:01:32]}  Qb3 {[%clk 0:01:27]} 25. Rfd1 {[%clk 0:01:26]}  Rd8 {[%clk 0:01:24]} 26. Rd2 {[%clk 0:01:19]}  Ne6 {[%clk 0:01:18]} 27. Rcd1 {[%clk 0:01:16]}  d5 {[%clk 0:01:16]} 28. f5 {[%clk 0:01:15]}  gxf5 {[%clk 0:01:12]} 29. Qxf5 {[%clk 0:01:13]}  Bh6 {[%clk 0:00:56]} 30. Rf2 {[%clk 0:01:11]}  Rf8 {[%clk 0:00:56]} 31. Rdf1 {[%clk 0:01:10]}  Qc4 {[%clk 0:00:51]} 32. Qh5 {[%clk 0:01:07]}  Bg7 {[%clk 0:00:39]} 33. Rxf7 {[%clk 0:01:05]}  Qd3 {[%clk 0:00:27]} 34. Rxf8+ {[%clk 0:00:55]}  Nxf8 {[%clk 0:00:27]} 35. Qf7+ {[%clk 0:00:55]}  Kh8 {[%clk 0:00:27]} 36. Rf3 {[%clk 0:00:51]}  Qd4 {[%clk 0:00:16]} 37. Qxe7 {[%clk 0:00:48]} 1-0


[Site "https://www.chess.com"]

[Event "Titled Tuesday Blitz January 18 2022"]
[White "Bluebaum, Matthias"]
[Black "Klimkowski, Jan"]
[WhiteFideId "24651516"]
[BlackFideId "21856222"]
[WhiteElo "2550"]
[BlackElo "2172"]
[Result "0-1"]
[Round "10"]
[TimeControl "180+1"]
[Date "2022.01.18"]
[WhiteClock "0:00:07"]
[BlackClock "0:01:15"]

1. d4 {[%clk 0:03:00]}  Nf6 {[%clk 0:02:59]} 2. c4 {[%clk 0:03:01]}  e6 {[%clk 0:02:59]} 3. Nc3 {[%clk 0:03:01]}  d5 {[%clk 0:03:00]} 4. cxd5 {[%clk 0:03:01]}  exd5 {[%clk 0:03:00]} 5. Bg5 {[%clk 0:03:02]}  c6 {[%clk 0:02:59]} 6. e3 {[%clk 0:03:00]}  Be7 {[%clk 0:02:59]} 7. Bd3 {[%clk 0:02:59]}  O-O {[%clk 0:03:00]} 8. h3 {[%clk 0:03:00]}  Nbd7 {[%clk 0:03:00]} 9. Nf3 {[%clk 0:02:59]}  Re8 {[%clk 0:02:59]} 10. Qc2 {[%clk 0:02:59]}  Nf8 {[%clk 0:02:57]} 11. O-O {[%clk 0:02:59]}  Ng6 {[%clk 0:02:57]} 12. Ne5 {[%clk 0:02:59]}  Nd7 {[%clk 0:02:43]} 13. Bxe7 {[%clk 0:02:51]}  Qxe7 {[%clk 0:02:42]} 14. f4 {[%clk 0:02:49]}  Ngf8 {[%clk 0:02:42]} 15. Rae1 {[%clk 0:02:37]}  f6 {[%clk 0:02:38]} 16. e4 {[%clk 0:02:31]}  dxe4 {[%clk 0:02:10]} 17. Bc4+ {[%clk 0:02:28]}  Ne6 {[%clk 0:02:10]} 18. Nxd7 {[%clk 0:01:20]}  Qxd7 {[%clk 0:02:10]} 19. Rxe4 {[%clk 0:01:20]}  Kh8 {[%clk 0:02:10]} 20. Qf2 {[%clk 0:01:00]}  Nc7 {[%clk 0:02:05]} 21. Rxe8+ {[%clk 0:00:58]}  Nxe8 {[%clk 0:01:59]} 22. Re1 {[%clk 0:00:58]}  Nd6 {[%clk 0:01:59]} 23. Bd3 {[%clk 0:00:57]}  Qf7 {[%clk 0:01:57]} 24. f5 {[%clk 0:00:53]}  Bd7 {[%clk 0:01:46]} 25. Qf4 {[%clk 0:00:53]}  Qf8 {[%clk 0:01:34]} 26. Na4 {[%clk 0:00:48]}  b6 {[%clk 0:01:33]} 27. Nc3 {[%clk 0:00:47]}  Re8 {[%clk 0:01:30]} 28. Rxe8 {[%clk 0:00:47]}  Nxe8 {[%clk 0:01:31]} 29. a3 {[%clk 0:00:32]}  Qd6 {[%clk 0:01:31]} 30. Qe3 {[%clk 0:00:30]}  Nc7 {[%clk 0:01:25]} 31. Ne4 {[%clk 0:00:26]}  Qe7 {[%clk 0:01:24]} 32. Qf4 {[%clk 0:00:27]}  Be8 {[%clk 0:01:18]} 33. Qd6 {[%clk 0:00:23]}  Qxd6 {[%clk 0:01:17]} 34. Nxd6 {[%clk 0:00:24]}  Bd7 {[%clk 0:01:16]} 35. Bc4 {[%clk 0:00:24]}  g6 {[%clk 0:01:15]} 36. fxg6 {[%clk 0:00:17]}  hxg6 {[%clk 0:01:16]} 37. Kf2 {[%clk 0:00:18]}  Kg7 {[%clk 0:01:16]} 38. Ke3 {[%clk 0:00:18]}  f5 {[%clk 0:01:15]} 39. Ba2 {[%clk 0:00:13]}  Kf6 {[%clk 0:01:16]} 40. Kf4 {[%clk 0:00:09]}  g5+ {[%clk 0:01:15]} 41. Ke3 {[%clk 0:00:10]}  Ke7 {[%clk 0:01:15]} 42. Nc4 {[%clk 0:00:07]}  Be6 {[%clk 0:01:16]} 43. b3 {[%clk 0:00:08]}  Nd5+ {[%clk 0:01:16]} 44. Kf2 {[%clk 0:00:07]}  Nc3 {[%clk 0:01:16]} 45. Ne5 {[%clk 0:00:07]}  Nxa2 {[%clk 0:01:16]} 46. Nxc6+ {[%clk 0:00:06]}  Kd6 {[%clk 0:01:16]} 47. Ne5 {[%clk 0:00:07]}  Bxb3 {[%clk 0:01:15]} 0-1


[Site "https://www.chess.com"]